[Event "GrandPrix_29.05"]
[Site "Chess.com"]
[Date "2020.05.29"]
[Round "8"]
[White "Lion_DL"]
[Black "rusuvlad95"]
[Result "1-0"]
[WhiteElo "2262"]
[BlackElo "2105"]
[TimeControl "600+2"]
[EndTime "13:00:23 PDT"]
[Termination "Lion_DL won by resignation"]

1. e4 {[%clk 0:10:01.9]} 1... e5 {[%clk 0:09:59.8]} 2. f4 {[%clk 0:10:00.7]}
2... exf4 {[%clk 0:09:54.1]} 3. Bc4 {[%clk 0:10:00.9]} 3... d5 {[%clk
0:09:30.2]} 4. exd5 {[%clk 0:09:47.2]} 4... Qh4+ {[%clk 0:09:28]} 5. Kf1 {[%clk
0:09:47.3]} 5... Bd6 {[%clk 0:09:26.3]} 6. Nf3 {[%clk 0:09:45.4]} 6... Qh5
{[%clk 0:09:23.4]} 7. d4 {[%clk 0:09:42.3]} 7... Ne7 {[%clk 0:09:20.7]} 8. Nc3
{[%clk 0:09:28.3]} 8... O-O {[%clk 0:09:08.6]} 9. Ne4 {[%clk 0:07:32.5]} 9...
Nxd5 {[%clk 0:08:52.7]} 10. Nxd6 {[%clk 0:07:32.1]} 10... cxd6 {[%clk
0:08:48.9]} 11. Bxd5 {[%clk 0:07:30]} 11... Qxd5 {[%clk 0:08:50]} 12. Bxf4
{[%clk 0:07:31.3]} 12... Re8 {[%clk 0:08:40.5]} 13. Kf2 {[%clk 0:07:21.7]} 13...
Nd7 {[%clk 0:08:37.3]} 14. Re1 {[%clk 0:06:53.1]} 14... Rxe1 {[%clk 0:08:14.3]}
15. Qxe1 {[%clk 0:06:55]} 15... Nf6 {[%clk 0:08:15.6]} 16. b3 {[%clk 0:06:27.5]}
16... Bg4 {[%clk 0:07:59.1]} 17. c4 {[%clk 0:06:24]} 17... Qf5 {[%clk
0:07:43.9]} 18. Bg3 {[%clk 0:03:46.8]} 18... Re8 {[%clk 0:06:39.3]} 19. Qd1
{[%clk 0:03:39.5]} 19... Ne4+ {[%clk 0:05:43.9]} 20. Kg1 {[%clk 0:03:38.8]}
20... Nxg3 {[%clk 0:05:42.2]} 21. hxg3 {[%clk 0:03:40.7]} 21... Re3 {[%clk
0:05:32.7]} 22. Qd2 {[%clk 0:03:38.6]} 22... Rd3 {[%clk 0:05:27.9]} 23. Qe2
{[%clk 0:02:19]} 23... g6 {[%clk 0:05:27.1]} 24. Rf1 {[%clk 0:02:14.1]} 24...
Kg7 {[%clk 0:05:17]} 25. d5 {[%clk 0:02:00.2]} 25... b5 {[%clk 0:04:48.8]} 26.
Qb2+ {[%clk 0:01:45.5]} 26... Kg8 {[%clk 0:04:44.3]} 27. Ne1 {[%clk 0:01:41.8]}
27... Qe4 {[%clk 0:04:41.2]} 28. Nxd3 {[%clk 0:01:40.1]} 28... Qxd3 {[%clk
0:04:38.9]} 29. Qf6 {[%clk 0:01:37.6]} 29... Qe3+ {[%clk 0:04:37]} 30. Qf2
{[%clk 0:01:31.6]} 30... Qxf2+ {[%clk 0:04:29.9]} 31. Kxf2 {[%clk 0:01:29]}
31... bxc4 {[%clk 0:04:29]} 32. bxc4 {[%clk 0:01:29.6]} 32... Bf5 {[%clk
0:04:28.9]} 33. Rc1 {[%clk 0:01:26.3]} 33... Kg7 {[%clk 0:04:27.2]} 34. Ke3
{[%clk 0:01:26.6]} 34... Kf6 {[%clk 0:04:25.8]} 35. Kd4 {[%clk 0:01:26.8]} 35...
Kg5 {[%clk 0:04:16.9]} 36. c5 {[%clk 0:01:26.2]} 36... dxc5+ {[%clk 0:04:17.7]}
37. Rxc5 {[%clk 0:01:26.5]} 37... Kg4 {[%clk 0:04:14.4]} 38. d6 {[%clk
0:01:25.4]} 38... Be6 {[%clk 0:04:12]} 39. Re5 {[%clk 0:01:21.1]} 39... Bc8
{[%clk 0:04:09.6]} 40. Re3 {[%clk 0:01:14.5]} 40... h5 {[%clk 0:04:07.9]} 41.
Kc5 {[%clk 0:01:15.2]} 41... Bd7 {[%clk 0:04:06.3]} 42. Re7 {[%clk 0:01:12.1]}
42... Bc8 {[%clk 0:04:04.3]} 43. d7 {[%clk 0:01:10.3]} 43... Bxd7 {[%clk
0:04:02.5]} 44. Rxd7 {[%clk 0:01:12.2]} 44... Kxg3 {[%clk 0:03:50]} 45. Rxf7
{[%clk 0:00:47.2]} 45... h4 {[%clk 0:03:46.2]} 46. Rg7 {[%clk 0:00:47]} 46...
Kxg2 {[%clk 0:03:36.8]} 47. Rxg6+ {[%clk 0:00:47.5]} 47... Kf3 {[%clk
0:03:35.4]} 48. Rh6 {[%clk 0:00:48]} 1-0

[Event "GrandPrix_29.05"]
[Site "Chess.com"]
[Date "2020.05.29"]
[Round "8"]
[White "Chessbuster123"]
[Black "Mikhail_Golubev"]
[Result "0-1"]
[WhiteElo "1930"]
[BlackElo "2015"]
[TimeControl "600+2"]
[EndTime "13:00:23 PDT"]
[Termination "Mikhail_Golubev won by resignation"]

1. d4 {[%clk 0:10:01.9]} 1... Nf6 {[%clk 0:09:59.9]} 2. c4 {[%clk 0:10:03.3]}
2... g6 {[%clk 0:10:00.4]} 3. g3 {[%clk 0:10:03.9]} 3... Bg7 {[%clk 0:10:00.9]}
4. Bg2 {[%clk 0:10:04.9]} 4... O-O {[%clk 0:10:01.3]} 5. Nc3 {[%clk 0:10:06.4]}
5... d6 {[%clk 0:10:02.1]} 6. Nf3 {[%clk 0:10:07.3]} 6... Nbd7 {[%clk
0:10:01.8]} 7. O-O {[%clk 0:10:08.4]} 7... e5 {[%clk 0:10:02.8]} 8. h3 {[%clk
0:10:09.3]} 8... c6 {[%clk 0:09:59.3]} 9. e4 {[%clk 0:10:08]} 9... exd4 {[%clk
0:09:54]} 10. Nxd4 {[%clk 0:10:06.8]} 10... Qb6 {[%clk 0:09:54.2]} 11. Nb3
{[%clk 0:09:45.6]} 11... Qb4 {[%clk 0:09:04.9]} 12. Qe2 {[%clk 0:09:03.1]} 12...
Ne5 {[%clk 0:06:54.1]} 13. c5 {[%clk 0:09:01.3]} 13... dxc5 {[%clk 0:06:31.4]}
14. f4 {[%clk 0:08:57.5]} 14... Nh5 {[%clk 0:06:02.1]} 15. Kh2 {[%clk 0:08:38]}
15... c4 {[%clk 0:06:01.1]} 16. Nd2 {[%clk 0:08:18.9]} 16... Nd3 {[%clk
0:05:55.7]} 17. e5 {[%clk 0:08:06.3]} 17... Nxc1 {[%clk 0:05:21.2]} 18. Rfxc1
{[%clk 0:07:57.2]} 18... f6 {[%clk 0:04:45.6]} 19. Nxc4 {[%clk 0:07:22.2]} 19...
fxe5 {[%clk 0:04:42.3]} 20. a3 {[%clk 0:07:17.8]} 20... Qe7 {[%clk 0:04:37.1]}
21. Re1 {[%clk 0:07:05.5]} 21... Nxg3 {[%clk 0:04:13.7]} 22. Kxg3 {[%clk
0:07:03.6]} 22... exf4+ {[%clk 0:04:12.5]} 23. Kh2 {[%clk 0:06:33.7]} 23... Qxe2
{[%clk 0:04:10.5]} 24. Rxe2 {[%clk 0:06:35.6]} 24... f3 {[%clk 0:04:08.5]} 25.
Re7 {[%clk 0:06:19.9]} 25... fxg2 {[%clk 0:04:02.9]} 26. Kxg2 {[%clk 0:06:21.8]}
26... Bf6 {[%clk 0:03:48]} 27. Re2 {[%clk 0:06:07.6]} 27... Bf5 {[%clk
0:02:52.2]} 28. Nd6 {[%clk 0:06:05.8]} 28... Rad8 {[%clk 0:02:52.5]} 29. Nxf5
{[%clk 0:05:55.3]} 29... gxf5 {[%clk 0:02:39.7]} 30. Na4 {[%clk 0:05:44.6]}
30... Kf7 {[%clk 0:02:26.6]} 31. Rf1 {[%clk 0:05:32.3]} 31... Rg8+ {[%clk
0:02:18.9]} 32. Kh2 {[%clk 0:05:30.1]} 32... Rd5 {[%clk 0:01:24.3]} 33. Rf3
{[%clk 0:05:03.8]} 33... Be5+ {[%clk 0:01:17.6]} 34. Rxe5 {[%clk 0:04:59]} 34...
Rxe5 {[%clk 0:01:18.4]} 35. Nc3 {[%clk 0:05:00.9]} 35... Ke6 {[%clk 0:01:09.7]}
36. Rd3 {[%clk 0:04:54.4]} 36... Re1 {[%clk 0:01:08.4]} 37. Rd2 {[%clk
0:04:55.1]} 37... f4 {[%clk 0:01:02.6]} 38. Ne2 {[%clk 0:04:53.3]} 38... Ke5
{[%clk 0:00:51.7]} 39. Nd4 {[%clk 0:04:46.3]} 39... Ke4 {[%clk 0:00:48.5]} 40.
Nc2 {[%clk 0:04:41.4]} 40... Rc1 {[%clk 0:00:42]} 41. Rd4+ {[%clk 0:04:37.7]}
41... Ke5 {[%clk 0:00:40.9]} 42. Rd2 {[%clk 0:04:38.3]} 42... Rxc2 {[%clk
0:00:40.9]} 43. Rxc2 {[%clk 0:04:39.1]} 43... f3 {[%clk 0:00:41.9]} 44. Rc3
{[%clk 0:04:30.6]} 44... Ke4 {[%clk 0:00:39.6]} 45. b4 {[%clk 0:04:27.4]} 45...
f2 {[%clk 0:00:35.3]} 46. Rc4+ {[%clk 0:04:18.9]} 46... Kd3 {[%clk 0:00:28]} 47.
Rf4 {[%clk 0:04:14.6]} 47... Ke2 {[%clk 0:00:26.6]} 48. Re4+ {[%clk 0:04:13.6]}
48... Kf3 {[%clk 0:00:27.1]} 0-1

[Event "GrandPrix_29.05"]
[Site "Chess.com"]
[Date "2020.05.29"]
[Round "8"]
[White "Sergey_Krivenko"]
[Black "0plaksin0"]
[Result "1-0"]
[WhiteElo "2101"]
[BlackElo "2145"]
[TimeControl "600+2"]
[EndTime "13:00:28 PDT"]
[Termination "Sergey_Krivenko won by resignation"]

1. d4 {[%clk 0:10:01.9]} 1... Nf6 {[%clk 0:10:00.9]} 2. Nf3 {[%clk 0:10:01.1]}
2... g6 {[%clk 0:10:01.9]} 3. Bg5 {[%clk 0:10:00.5]} 3... Bg7 {[%clk 0:10:02.7]}
4. Nbd2 {[%clk 0:10:00.7]} 4... d5 {[%clk 0:10:02.4]} 5. e3 {[%clk 0:09:47.1]}
5... O-O {[%clk 0:10:03]} 6. Be2 {[%clk 0:09:45.6]} 6... c5 {[%clk 0:09:57.5]}
7. c3 {[%clk 0:09:41.6]} 7... Nc6 {[%clk 0:09:58]} 8. O-O {[%clk 0:09:29.4]}
8... b6 {[%clk 0:09:57.9]} 9. Qb3 {[%clk 0:08:31.6]} 9... c4 {[%clk 0:09:47.8]}
10. Qa3 {[%clk 0:08:20.2]} 10... b5 {[%clk 0:09:35]} 11. b3 {[%clk 0:08:02.9]}
11... Bf5 {[%clk 0:09:25.2]} 12. Ne5 {[%clk 0:07:27.3]} 12... Qa5 {[%clk
0:07:50.5]} 13. Qxa5 {[%clk 0:06:50.8]} 13... Nxa5 {[%clk 0:07:52.4]} 14. b4
{[%clk 0:06:43.4]} 14... Nb7 {[%clk 0:07:51.4]} 15. Bf3 {[%clk 0:05:59.2]} 15...
e6 {[%clk 0:07:34.3]} 16. Bxf6 {[%clk 0:05:54.8]} 16... Bxf6 {[%clk 0:07:28.8]}
17. Nd7 {[%clk 0:05:55.1]} 17... Bg5 {[%clk 0:07:21.9]} 18. Nxf8 {[%clk
0:05:51.4]} 18... Kxf8 {[%clk 0:07:23.2]} 19. a4 {[%clk 0:05:06.9]} 19... Nd6
{[%clk 0:07:20.5]} 20. Rfc1 {[%clk 0:04:53.7]} 20... Bd8 {[%clk 0:06:44.6]} 21.
Be2 {[%clk 0:04:28.4]} 21... g5 {[%clk 0:06:37.1]} 22. h3 {[%clk 0:04:23.6]}
22... Bg6 {[%clk 0:06:07.9]} 23. Bf3 {[%clk 0:04:15.7]} 23... f5 {[%clk
0:06:03.6]} 24. g3 {[%clk 0:04:06]} 24... Bb6 {[%clk 0:05:04]} 25. Bd1 {[%clk
0:03:51.5]} 25... Ke7 {[%clk 0:04:53.6]} 26. Nf3 {[%clk 0:03:42.5]} 26... Be8
{[%clk 0:04:52.1]} 27. axb5 {[%clk 0:03:34.6]} 27... Nf7 {[%clk 0:03:49.5]} 28.
Bc2 {[%clk 0:03:20.1]} 28... h6 {[%clk 0:03:42.5]} 29. g4 {[%clk 0:03:15.3]}
29... Kf6 {[%clk 0:03:43.3]} 30. Nh2 {[%clk 0:02:53]} 30... Nd6 {[%clk
0:03:25.4]} 31. Nf1 {[%clk 0:02:44.7]} 31... Bf7 {[%clk 0:03:14.6]} 32. Ng3
{[%clk 0:02:32.2]} 32... Be8 {[%clk 0:03:14.4]} 33. f3 {[%clk 0:02:30.8]} 33...
Rb8 {[%clk 0:03:07]} 34. Kh2 {[%clk 0:02:22.5]} 34... Bg6 {[%clk 0:03:01.7]} 35.
gxf5 {[%clk 0:02:09.4]} 35... exf5 {[%clk 0:02:58.8]} 36. e4 {[%clk 0:02:10.2]}
36... fxe4 {[%clk 0:02:43.8]} 37. fxe4 {[%clk 0:02:09.6]} 37... Nxe4 {[%clk
0:02:43.3]} 38. Rf1+ {[%clk 0:02:06.2]} 38... Ke6 {[%clk 0:02:41.7]} 39. Nxe4
{[%clk 0:02:02.5]} 39... dxe4 {[%clk 0:02:41.3]} 40. Rae1 {[%clk 0:02:03.3]}
40... Kd5 {[%clk 0:02:06.7]} 41. Rf6 {[%clk 0:01:58.1]} 41... Rg8 {[%clk
0:02:06.4]} 42. Rxg6 {[%clk 0:01:55.2]} 1-0

[Event "GrandPrix_29.05"]
[Site "Chess.com"]
[Date "2020.05.29"]
[Round "8"]
[White "FLamps8"]
[Black "tigra"]
[Result "0-1"]
[WhiteElo "2270"]
[BlackElo "2656"]
[TimeControl "600+2"]
[EndTime "13:00:44 PDT"]
[Termination "tigra won by resignation"]

1. d4 {[%clk 0:10:01]} 1... Nf6 {[%clk 0:10:00]} 2. Bf4 {[%clk 0:09:59.2]} 2...
c6 {[%clk 0:09:48.2]} 3. Nc3 {[%clk 0:09:50.8]} 3... d6 {[%clk 0:09:32]} 4. a4
{[%clk 0:09:35.7]} 4... Qc7 {[%clk 0:09:18.5]} 5. e4 {[%clk 0:09:25.3]} 5... e5
{[%clk 0:09:18]} 6. Bg3 {[%clk 0:08:57]} 6... a5 {[%clk 0:09:05.9]} 7. Bc4
{[%clk 0:08:39.5]} 7... Nbd7 {[%clk 0:08:22.1]} 8. Nf3 {[%clk 0:08:05.9]} 8...
Be7 {[%clk 0:08:19]} 9. O-O {[%clk 0:08:06.5]} 9... O-O {[%clk 0:08:19.7]} 10.
Nh4 {[%clk 0:07:33.7]} 10... exd4 {[%clk 0:08:16.7]} 11. Qxd4 {[%clk 0:07:32.1]}
11... Ne5 {[%clk 0:08:17.7]} 12. Ba2 {[%clk 0:07:14.6]} 12... Be6 {[%clk
0:08:04.7]} 13. Bxe6 {[%clk 0:06:55.6]} 13... fxe6 {[%clk 0:08:05.5]} 14. Bxe5
{[%clk 0:06:56.9]} 14... dxe5 {[%clk 0:08:06.4]} 15. Qc4 {[%clk 0:06:58.8]}
15... Qc8 {[%clk 0:07:43.3]} 16. Nf5 {[%clk 0:06:54]} 16... Bb4 {[%clk
0:07:42.3]} 17. Rad1 {[%clk 0:05:03.8]} 17... b5 {[%clk 0:06:17.1]} 18. Qb3
{[%clk 0:04:14.3]} 18... Kh8 {[%clk 0:06:11.3]} 19. Nd6 {[%clk 0:03:49]} 19...
Bxd6 {[%clk 0:06:10.1]} 20. Rxd6 {[%clk 0:03:49.8]} 20... b4 {[%clk 0:06:11.7]}
21. Ne2 {[%clk 0:03:14.4]} 21... Nxe4 {[%clk 0:06:12.3]} 22. Rdd1 {[%clk
0:03:15.3]} 22... Qa6 {[%clk 0:05:19.5]} 23. Qe3 {[%clk 0:02:39.9]} 23... Nf6
{[%clk 0:05:18.5]} 24. Qxe5 {[%clk 0:02:35.3]} 24... Qc4 {[%clk 0:05:14.7]} 25.
Nd4 {[%clk 0:02:23.6]} 25... Rad8 {[%clk 0:04:16.4]} 26. Nxe6 {[%clk 0:01:33.6]}
26... Rxd1 {[%clk 0:04:12.7]} 27. Rxd1 {[%clk 0:01:33.7]} 27... Re8 {[%clk
0:04:12.1]} 28. Rd8 {[%clk 0:00:41.2]} 28... Rxd8 {[%clk 0:04:10.4]} 29. Nxd8
{[%clk 0:00:43.1]} 29... Qxc2 {[%clk 0:04:11.5]} 30. h3 {[%clk 0:00:29.4]} 30...
Qd1+ {[%clk 0:04:11.8]} 31. Kh2 {[%clk 0:00:27.8]} 31... Qxd8 {[%clk 0:04:13.7]}
32. Qc5 {[%clk 0:00:27]} 32... Qc7+ {[%clk 0:04:11.4]} 33. g3 {[%clk 0:00:28.5]}
33... h6 {[%clk 0:04:12]} 34. b3 {[%clk 0:00:23.7]} 34... Kg8 {[%clk 0:04:11.3]}
35. Qc4+ {[%clk 0:00:23]} 35... Nd5 {[%clk 0:04:12.3]} 36. Qc5 {[%clk
0:00:22.4]} 36... Qb6 {[%clk 0:04:13]} 37. Qc2 {[%clk 0:00:23.4]} 37... Nc3
{[%clk 0:04:13.2]} 38. Qf5 {[%clk 0:00:24.3]} 38... c5 {[%clk 0:03:49.6]} 39.
Qc8+ {[%clk 0:00:17.5]} 39... Kf7 {[%clk 0:03:50.7]} 40. Qd7+ {[%clk 0:00:16.9]}
40... Kf6 {[%clk 0:03:52]} 41. f4 {[%clk 0:00:12.2]} 41... c4 {[%clk 0:03:44.7]}
42. Qe8 {[%clk 0:00:04.2]} 42... Qf2+ {[%clk 0:03:42.2]} 43. Kh1 {[%clk
0:00:05.3]} 43... Qf1+ {[%clk 0:03:43.6]} 44. Kh2 {[%clk 0:00:06]} 44... Qe2+
{[%clk 0:03:45.5]} 0-1

[Event "GrandPrix_29.05"]
[Site "Chess.com"]
[Date "2020.05.29"]
[Round "8"]
[White "AlexVanGog"]
[Black "Hrant_ChessMood"]
[Result "0-1"]
[WhiteElo "2598"]
[BlackElo "2854"]
[TimeControl "600+2"]
[EndTime "13:00:45 PDT"]
[Termination "Hrant_ChessMood won by resignation"]

1. d4 {[%clk 0:10:00.5]} 1... Nf6 {[%clk 0:10:00.8]} 2. c4 {[%clk 0:10:01.5]}
2... g6 {[%clk 0:10:02.4]} 3. f3 {[%clk 0:10:00.3]} 3... Bg7 {[%clk 0:10:01.1]}
4. e4 {[%clk 0:10:00.7]} 4... d6 {[%clk 0:10:02.7]} 5. Nc3 {[%clk 0:10:00.1]}
5... a6 {[%clk 0:10:03.2]} 6. Be3 {[%clk 0:10:00.4]} 6... O-O {[%clk 0:10:02.2]}
7. Qd2 {[%clk 0:09:51.5]} 7... c5 {[%clk 0:10:02]} 8. Nge2 {[%clk 0:09:43.6]}
8... Nbd7 {[%clk 0:09:49.7]} 9. d5 {[%clk 0:09:21.8]} 9... b5 {[%clk 0:09:38.5]}
10. cxb5 {[%clk 0:09:21.3]} 10... axb5 {[%clk 0:09:39.4]} 11. Nxb5 {[%clk
0:09:22.2]} 11... Ba6 {[%clk 0:09:26.1]} 12. Nec3 {[%clk 0:09:21]} 12... Qa5
{[%clk 0:09:21.2]} 13. a4 {[%clk 0:08:15]} 13... Rfb8 {[%clk 0:09:18.7]} 14. Ra3
{[%clk 0:08:03.9]} 14... Ne8 {[%clk 0:09:05.7]} 15. Be2 {[%clk 0:07:56.7]} 15...
Nc7 {[%clk 0:05:38.8]} 16. Nxc7 {[%clk 0:07:44.3]} 16... Qxc7 {[%clk 0:05:34.3]}
17. Nb5 {[%clk 0:07:43.2]} 17... Bxb5 {[%clk 0:04:36.5]} 18. Bxb5 {[%clk
0:07:35.7]} 18... c4 {[%clk 0:04:37.9]} 19. O-O {[%clk 0:07:03.6]} 19... c3
{[%clk 0:04:36.5]} 20. Qc2 {[%clk 0:06:08.8]} 20... Qa5 {[%clk 0:03:05.9]} 21.
Bxd7 {[%clk 0:05:04.4]} 21... Rxb2 {[%clk 0:03:06.2]} 22. Qd3 {[%clk 0:04:53.7]}
22... Rab8 {[%clk 0:03:02.5]} 23. Raa1 {[%clk 0:03:51.7]} 23... c2 {[%clk
0:02:47.6]} 24. Rac1 {[%clk 0:03:45]} 24... R8b3 {[%clk 0:02:00.9]} 25. Qe2
{[%clk 0:02:36.8]} 25... Qc3 {[%clk 0:01:55.6]} 26. Bb5 {[%clk 0:02:19.6]} 26...
Qxe3+ {[%clk 0:01:45.7]} 27. Qxe3 {[%clk 0:02:06.7]} 27... Rxe3 {[%clk
0:01:47.6]} 28. Kf2 {[%clk 0:01:56.2]} 28... Bd4 {[%clk 0:01:34.1]} 29. Kg3
{[%clk 0:01:56.2]} 29... Rc3 {[%clk 0:01:30.3]} 30. Rfe1 {[%clk 0:01:54.9]}
30... Be5+ {[%clk 0:01:02.6]} 0-1

[Event "GrandPrix_29.05"]
[Site "Chess.com"]
[Date "2020.05.29"]
[Round "8"]
[White "Nuvas"]
[Black "hubertsmazak"]
[Result "1-0"]
[WhiteElo "2283"]
[BlackElo "2326"]
[TimeControl "600+2"]
[EndTime "13:00:47 PDT"]
[Termination "Nuvas won by resignation"]

1. d4 {[%clk 0:10:01.9]} 1... Nf6 {[%clk 0:10:00.3]} 2. c4 {[%clk 0:10:02.8]}
2... e6 {[%clk 0:10:01]} 3. Nc3 {[%clk 0:10:03.7]} 3... Bb4 {[%clk 0:10:00.4]}
4. g3 {[%clk 0:10:04.9]} 4... d5 {[%clk 0:09:58.4]} 5. Bg2 {[%clk 0:10:05.7]}
5... O-O {[%clk 0:09:58.5]} 6. Nf3 {[%clk 0:10:06.8]} 6... dxc4 {[%clk
0:09:56.7]} 7. O-O {[%clk 0:10:07.6]} 7... c5 {[%clk 0:09:57.4]} 8. dxc5 {[%clk
0:10:08.4]} 8... Qxd1 {[%clk 0:09:57.8]} 9. Rxd1 {[%clk 0:10:08.9]} 9... Bxc5
{[%clk 0:09:57.8]} 10. Ne5 {[%clk 0:10:09.7]} 10... Nbd7 {[%clk 0:09:52]} 11.
Nxc4 {[%clk 0:10:09.8]} 11... Nb6 {[%clk 0:09:46.6]} 12. Na5 {[%clk 0:10:06.8]}
12... Ng4 {[%clk 0:09:32.2]} 13. Ne4 {[%clk 0:09:56.7]} 13... Bb4 {[%clk
0:09:31.5]} 14. Bd2 {[%clk 0:09:53.7]} 14... Bxd2 {[%clk 0:09:22.5]} 15. Rxd2
{[%clk 0:09:55.6]} 15... Bd7 {[%clk 0:09:04.4]} 16. Nxb7 {[%clk 0:09:16.9]}
16... Rab8 {[%clk 0:09:04.1]} 17. Nec5 {[%clk 0:09:07.3]} 17... Bc8 {[%clk
0:08:48.3]} 18. Na5 {[%clk 0:08:54.8]} 18... Ne5 {[%clk 0:08:49.2]} 19. Rc1
{[%clk 0:08:53.8]} 19... Nd5 {[%clk 0:08:20.3]} 20. f4 {[%clk 0:07:59.1]} 20...
Nd7 {[%clk 0:08:07.5]} 21. Nc6 {[%clk 0:07:38.8]} 21... Ra8 {[%clk 0:08:07.2]}
22. Nxd7 {[%clk 0:07:13.9]} 22... Bxd7 {[%clk 0:08:07]} 23. Ne7+ {[%clk
0:07:15.2]} 23... Kh8 {[%clk 0:08:02.6]} 24. Nxd5 {[%clk 0:07:14.5]} 24... exd5
{[%clk 0:08:04.5]} 25. Bxd5 {[%clk 0:07:07.4]} 25... Rad8 {[%clk 0:08:00.5]} 26.
e4 {[%clk 0:07:03.8]} 26... a5 {[%clk 0:07:56.8]} 27. Rcd1 {[%clk 0:06:55.6]}
27... Rb8 {[%clk 0:07:55.1]} 28. Bxf7 {[%clk 0:06:47.6]} 28... Bg4 {[%clk
0:07:55.7]} 29. Bb3 {[%clk 0:06:42.5]} 29... Bxd1 {[%clk 0:07:53.6]} 30. Bxd1
{[%clk 0:06:43.4]} 30... Rfd8 {[%clk 0:07:50.9]} 31. Rxd8+ {[%clk 0:06:32.4]}
31... Rxd8 {[%clk 0:07:52.8]} 32. Bb3 {[%clk 0:06:33.7]} 32... Rd2 {[%clk
0:07:53.4]} 33. e5 {[%clk 0:06:29.2]} 33... Rxb2 {[%clk 0:07:49.8]} 34. e6
{[%clk 0:06:24]} 34... g6 {[%clk 0:07:45.6]} 35. Kf1 {[%clk 0:05:39.9]} 35...
Rb1+ {[%clk 0:07:09.7]} 36. Kf2 {[%clk 0:05:40]} 36... Rb2+ {[%clk 0:06:28.1]}
37. Kf3 {[%clk 0:03:38]} 37... Rb1 {[%clk 0:06:27.7]} 38. Ke2 {[%clk 0:02:46.1]}
38... Rb2+ {[%clk 0:06:23.6]} 39. Kd3 {[%clk 0:02:47.3]} 39... Rb1 {[%clk
0:06:21.9]} 40. Kd2 {[%clk 0:01:21.8]} 40... Rb2+ {[%clk 0:06:20.7]} 41. Kc3
{[%clk 0:01:08.2]} 41... Rxh2 {[%clk 0:03:42.5]} 42. Bc4 {[%clk 0:01:01]} 42...
Rh1 {[%clk 0:03:41.3]} 43. Kd2 {[%clk 0:00:36.6]} 43... Rh2+ {[%clk 0:03:34.4]}
44. Ke3 {[%clk 0:00:35.6]} 44... Rh1 {[%clk 0:03:09.6]} 45. e7 {[%clk
0:00:36.2]} 1-0

[Event "GrandPrix_29.05"]
[Site "Chess.com"]
[Date "2020.05.29"]
[Round "8"]
[White "DariaVoit"]
[Black "Korchmar_Vasiliy"]
[Result "1-0"]
[WhiteElo "2255"]
[BlackElo "2069"]
[TimeControl "600+2"]
[EndTime "13:01:10 PDT"]
[Termination "DariaVoit won by resignation"]

1. d4 {[%clk 0:10:01.9]} 1... Nf6 {[%clk 0:10:00.5]} 2. Nf3 {[%clk 0:10:02.2]}
2... d5 {[%clk 0:10:01.2]} 3. c4 {[%clk 0:09:59.7]} 3... e6 {[%clk 0:10:02]} 4.
g3 {[%clk 0:09:56.9]} 4... Bb4+ {[%clk 0:09:52]} 5. Bd2 {[%clk 0:09:56.6]} 5...
Bd6 {[%clk 0:09:52.8]} 6. Bg5 {[%clk 0:09:49.3]} 6... O-O {[%clk 0:09:49.6]} 7.
Nc3 {[%clk 0:09:45.7]} 7... c6 {[%clk 0:09:41.8]} 8. e4 {[%clk 0:09:44.9]} 8...
dxe4 {[%clk 0:09:28.5]} 9. Bxf6 {[%clk 0:09:30]} 9... Qxf6 {[%clk 0:09:18.8]}
10. Nxe4 {[%clk 0:09:30.6]} 10... Bb4+ {[%clk 0:09:19.7]} 11. Nc3 {[%clk
0:09:25.4]} 11... c5 {[%clk 0:09:08.5]} 12. Bg2 {[%clk 0:08:54.8]} 12... Nc6
{[%clk 0:08:31.6]} 13. O-O {[%clk 0:08:05.2]} 13... Nxd4 {[%clk 0:06:46.7]} 14.
Nxd4 {[%clk 0:07:30.6]} 14... cxd4 {[%clk 0:06:17.7]} 15. Ne4 {[%clk 0:07:24.3]}
15... Qd8 {[%clk 0:06:18.8]} 16. Qb3 {[%clk 0:07:15.6]} 16... Be7 {[%clk
0:06:10.9]} 17. Rad1 {[%clk 0:07:14.6]} 17... e5 {[%clk 0:05:47.2]} 18. Nc3
{[%clk 0:06:58.4]} 18... Bg4 {[%clk 0:05:46.7]} 19. f3 {[%clk 0:06:52.1]} 19...
Be6 {[%clk 0:05:34.4]} 20. f4 {[%clk 0:06:42.8]} 20... exf4 {[%clk 0:05:27.4]}
21. Rxf4 {[%clk 0:06:40.1]} 21... Bc5 {[%clk 0:03:47.4]} 22. Na4 {[%clk
0:06:37.8]} 22... b6 {[%clk 0:02:48.5]} 23. Nxc5 {[%clk 0:06:35.1]} 23... bxc5
{[%clk 0:02:49]} 24. Bxa8 {[%clk 0:06:36]} 24... Qxa8 {[%clk 0:02:50.9]} 25. h4
{[%clk 0:06:31.3]} 25... Rb8 {[%clk 0:02:11.4]} 26. Qc2 {[%clk 0:06:29]} 26...
a5 {[%clk 0:02:07.9]} 27. b3 {[%clk 0:06:19.6]} 27... a4 {[%clk 0:02:02.5]} 28.
Kh2 {[%clk 0:05:07.6]} 28... h6 {[%clk 0:02:03.1]} 29. Rb1 {[%clk 0:04:58.2]}
29... a3 {[%clk 0:01:59.3]} 30. Re1 {[%clk 0:04:50.8]} 30... Qa5 {[%clk
0:01:48.9]} 31. Re5 {[%clk 0:04:45.1]} 31... Rd8 {[%clk 0:01:38.7]} 32. Qd3
{[%clk 0:04:17.8]} 32... Qc3 {[%clk 0:01:08.8]} 33. Rf3 {[%clk 0:04:13.7]} 33...
Qb4 {[%clk 0:00:40.5]} 34. Rf2 {[%clk 0:03:45.6]} 34... Qb6 {[%clk 0:00:39.5]}
35. Qe4 {[%clk 0:03:03.2]} 35... d3 {[%clk 0:00:31.1]} 36. Qe3 {[%clk
0:03:03.5]} 36... Qb4 {[%clk 0:00:24.4]} 37. Rd2 {[%clk 0:02:56.2]} 37... Qc3
{[%clk 0:00:24.5]} 38. Rxc5 {[%clk 0:02:50.6]} 38... Bf5 {[%clk 0:00:10.9]} 39.
Rxf5 {[%clk 0:02:49.9]} 1-0